Cogmind - Beta 14 @@@ ROGUE MODE // 2025.02.28 @ 16:16:20 Player: Err. String Expected Got Nil Result: Destroyed by D-53 Grenadier with Mini Grenade Launcher Performance ------------- Evolutions (0) 0 Regions Visited (2) 400 Robots Destroyed (27) 135 Value Destroyed (479) 479 Prototype IDs (3) 60 Alien Tech Used (0) 0 Bonus (0) 0 TOTAL SCORE: 1074 Bonus ------- None Cogmind --------- Core Integrity 0/250 Matter 213/300 Energy 100/100 System Corruption 0% Temperature Cool (30) Movement Core (700) Ox13 Location -10/Mines Parts ------- > --- POWER (1) -------- (None) > --- PROPULSION (2) --- (None) > --- UTILITY (2) ------ High-capacity Storage Unit Targeting Computer > --- WEAPON (2) ------- (None) > --- INVENTORY (20) --- Light Treads Aluminum Leg Aluminum Leg Aluminum Leg Aluminum Leg Aluminum Leg Heat Sink Improved Heat Sink Large Storage Unit Medium Matter Pod (0) Sensor Array Light Assault Rifle Light Assault Rifle Grenade Launcher Grenade Launcher Datajack Peak State ------------ > --- POWER ------------ Ion Engine > --- PROPULSION ------- Wheel Wheel > --- UTILITY ---------- High-capacity Storage Unit Targeting Computer > --- WEAPON ----------- Medium Laser Light Assault Rifle > --- INVENTORY -------- Ion Engine Light Treads Aluminum Leg Aluminum Leg Aluminum Leg Aluminum Leg Aluminum Leg Heat Sink Improved Heat Sink Large Storage Unit Large Battery Sensor Array EM Pulse Gun EM Pulse Gun Light Assault Rifle Light Assault Rifle Grenade Launcher Grenade Launcher Datajack [Rating: 9] Favorites ----------- Power Ion Engine Engine Ion Engine Propulsion Light Treads Treads Light Treads Wheel Wheel Utility Targeting Computer Storage High-capacity Storage Unit Processor Targeting Computer Weapon Medium Laser Energy Gun Medium Laser Ballistic Gun Light Assault Rifle Launcher Grenade Launcher Build | -11 -10 -10 ------- Run | Yrd Mat Min Slots Evolved . | . . . Power . | . . . Propulsion . | . . . Utility . | . . . Weapon . | . . . Parts Attached 21 | 6 8 7 Power 3 | 1 1 1 Engine 3 | 1 1 1 Core . | . . . Reactor . | . . . Propulsion 7 | 2 4 1 Treads 2 | 2 . . Leg . | . . . Wheel 5 | . 4 1 Hover . | . . . Flight . | . . . Utility 3 | 1 2 . Device . | . . . Storage 2 | 1 1 . Processor 1 | . 1 . Hackware . | . . . Protection . | . . . Artifact . | . . . Weapon 8 | 2 1 5 Energy Gun 5 | 1 1 3 Energy Cannon . | . . . Ballistic Gun 2 | 1 . 1 Ballistic Cannon . | . . . Launcher 1 | . . 1 Special Weapon . | . . . Impact Weapon . | . . . Slashing Weapon . | . . . Piercing Weapon . | . . . Special Melee Weapon . | . . . Unidentified Prototypes . | . . . Parts Lost 13 | . 4 9 Power 3 | . 1 2 Propulsion 5 | . 2 3 Utility . | . . . Weapon 5 | . 1 4 Highest Loss Streak 6 | . 2 6 To Critical Strikes . | . . . Average Slot Usage (%) 95 | . 95 92 Engine 13 | . 14 10 Treads 23 | . 24 . Wheel 4 | . 2 25 Storage 14 | . 14 14 Processor 11 | . 10 14 Energy Gun 14 | . 13 22 Ballistic Gun 13 | . 14 2 Peak Build Rating 9 | 6 9 9 Average Rating 7 | 4 7 8 On Entrance 5 | . 6 9 Naked Turns . | . . . Heaviest Build 50 | 13 48 50 Greatest Support 40 | 40 40 20 Greatest Overweight (x) 4 | . 4 2 Average Overweight (x) . | . . 2 Largest Inventory Capacity 20 | 8 20 20 Average Capacity 15 | 6 15 20 Most Carried 20 | 2 20 20 Average Carried 11 | 1 11 18 Final Capacity 20 | 8 20 20 Final Carried 20 | 2 20 16 Class Distribution -------------------- 100% | Mutant Dominant Class ---------------- Mutant | -10/Materials Mutant | -10/Mines Resources | -11 -10 -10 ----------- Run | Yrd Mat Min Matter Collected 417 | 165 246 6 Remotely . | . . . Salvage Created 908 | . 864 44 Parts 51 | . 50 1 Haulers Intercepted 2 | . 2 . Recyclers Shooed 3 | . 3 . Parts Field Recycled . | . . . Retrieved Matter . | . . . Parts Self-Destructed . | . . . Prevented . | . . . Kills | -11 -10 -10 ------- Run | Yrd Mat Min Combat Hostiles Destroyed 28 | . 14 14 Guns 15 | . 14 1 AOE 13 | . . 13 Classes Destroyed 11 | . 9 2 Worker 3 | . 3 . Builder 2 | . 2 . Tunneler 1 | . 1 . Hauler 2 | . 2 . Recycler 2 | . 2 . Operator 1 | . 1 . Watcher 1 | . 1 . Swarmer 6 | . 6 . Grunt 8 | . 8 . Demolisher 1 | . . 1 Assembled 13 | . . 13 Best Kill Streak 13 | . 4 13 Combat Bots Only 13 | . 2 13 Max Kills in Single Turn 4 | . 1 4 Gunslinging . | . . . Exploded 4 | . . 4 Melee . | . . . Uniques/NPCs Destroyed . | . . . Combat | -11 -10 -10 -------- Run | Yrd Mat Min Hostile Shots Fired 122 | . 98 24 Missed 30 | . 26 4 Damage Taken 1419 | . 732 687 Core 255 | . 118 137 Absorbed by Shields . | . . . Core Remaining (%) 100 | 100 . . Volleys Fired 111 | . 93 18 Largest 2 | . 2 2 Hottest 90 | . 70 90 Shots Fired 212 | . 185 27 Gun 206 | . 185 21 Cannon . | . . . Launcher 6 | . . 6 Special . | . . . Kinetic 99 | . 93 6 Thermal 99 | . 92 7 Explosive 6 | . . 6 Electromagnetic 8 | . . 8 Robot Hit Streak 22 | . 22 7 Robot Miss Streak 4 | . 4 4 Penetration Max . | . . . Secondary Targets 1 | . 1 . Max Gunslinging Chain 1 | . 1 . Shots Hit Robots 137 | . 121 16 Core Hits 73 | . 47 26 Critical Kills . | . . . Critical Parts Destroyed 1 | . 1 . Critical Strikes 6 | . 6 . Burn 5 | . 5 . Destroy 1 | . 1 . Melee Attacks . | . . . Impact . | . . . Slashing . | . . . Piercing . | . . . Sneak Attacks . | . . . Combat Hostiles . | . . . Follow-up Attacks . | . . . Damage Inflicted 2134 | . 1335 799 Guns 1444 | . 1329 115 Cannons . | . . . Explosions 684 | . . 684 Melee . | . . . Ramming 6 | . 6 . Kinetic 465 | . 432 33 Thermal 935 | . 897 38 Explosive 684 | . . 684 Electromagnetic 44 | . . 44 Impact . | . . . Slashing . | . . . Piercing . | . . . Highest Corruption . | . . . Average Corruption . | . . . Corruption Purged . | . . . Corruption Blocked . | . . . Overload Shots . | . . . Overflow Damage 17 | . . 17 Projectiles . | . . . Explosions 17 | . . 17 Melee . | . . . Knockbacks . | . . . Impact . | . . . Kinetic . | . . . Secondary . | . . . Self-Inflicted Damage 66 | . 2 64 Shots 4 | . . 4 Rammed 3 | . 3 . Targets Rammed 3 | . 3 . Kicked . | . . . Crushed . | . . . Highest Temperature 271 | . 271 80 Average Temperature 59 | . 63 27 Received Heat Transfer 295 | . 255 40 Effects 1 | . 1 . Energy Bleed 1 | . 1 . Siege Activations . | . . . Robots Corrupted . | . . . Combat Hostiles . | . . . Parts Fried . | . . . Impact Corruptions . | . . . Robots Melted 1 | . 1 . Combat Hostiles . | . . . Parts Melted 6 | . 6 . Heat Transferred 3071 | . 2960 111 Parts Sabotaged . | . . . Parts Stolen . | . . . Parts Stripped . | . . . Power Chain Reactions . | . . . Alert | -11 -10 -10 ------- Run | Yrd Mat Min Peak Influence 173 | . 173 69 Initial 56 | . . 56 Average 56 | . 58 57 Maximum Alert Level . | . . . Low Security (%) 100 | 100 100 100 Level 1 . | . . . Level 2 . | . . . Level 3 . | . . . Level 4 . | . . . Level 5 . | . . . High Security . | . . . Max Security . | . . . Squads Dispatched 2 | . 2 . Investigation 1 | . 1 . Extermination . | . . . Reinforcement 1 | . 1 . Assault . | . . . Garrison . | . . . Intercept . | . . . Searches Triggered . | . . . Construction Impeded . | . . . Haulers Reinforced . | . . . Active Scanning Responses . | . . . Cargo Convoy Interrupts . | . . . Stealth | -11 -10 -10 --------- Run | Yrd Mat Min Distress Signals 2 | . 2 . Communications Jammed . | . . . Distress Signals . | . . . Times Spotted 57 | . 34 23 Peak Tracking Total 16 | . 4 16 Tactical Retreats 4 | . 3 1 Traps | -11 -10 -10 ------- Run | Yrd Mat Min Traps Triggered 1 | . 1 . Indirectly . | . . . Trap Hack Attempts . | . . . Triggered . | . . . Disarmed . | . . . Reprogrammed . | . . . Reused . | . . . Traps Extracted . | . . . Installed . | . . . Triggered . | . . . Machines | -11 -10 -10 ---------- Run | Yrd Mat Min Machines Disabled . | . . . Max in Single Turn . | . . . Machines Repaired . | . . . Machines Dismantled . | . . . Machines Sabotaged . | . . . Overloaded Fab Kills . | . . . Hacking | -11 -10 -10 --------- Run | Yrd Mat Min Machines Accessed 8 | . 8 . Terminals 8 | . 8 . Fabricators . | . . . Repair Stations . | . . . Recycling Units . | . . . Scanalyzers . | . . . Garrison Access . | . . . Total Hacks 20 | . 20 . Successful 11 | . 11 . Failed 9 | . 9 . Catastrophic . | . . . Database Lockouts . | . . . Manual 15 | . 15 . Terminals 20 | . 20 . Fabricators . | . . . Repair Stations . | . . . Recycling Units . | . . . Scanalyzers . | . . . Garrison Access . | . . . Terminal Hacks 7 | . 7 . Robot Analysis 3 | . 3 . Prototype ID Bank 2 | . 2 . Transport Status 1 | . 1 . Zone Layout 1 | . 1 . Fabricator Hacks . | . . . Repair Station Hacks . | . . . Recycling Unit Hacks . | . . . Scanalyzer . | . . . Garrison Access Hacks . | . . . Unauthorized Hacks 4 | . 4 . Terminals 4 | . 4 . Botnet 3 | . 3 . Operators 1 | . 1 . Fabricators . | . . . Repair Stations . | . . . Recycling Units . | . . . Scanalyzers . | . . . Garrison Access . | . . . Data Cores Recovered . | . . . Used . | . . . Hacking Detections 7 | . 7 . Full Trace Events 1 | . 1 . Feedback Events . | . . . Feedback Blocked . | . . . Robot Schematics Acquired . | . . . Robots Built . | . . . Authchips . | . . . Time . | . . . Total Robot Build Rating . | . . . Part Schematics Acquired . | . . . Parts Built . | . . . Authchips . | . . . Time . | . . . Total Part Build Rating . | . . . Parts Repaired . | . . . Time . | . . . Parts Recycled . | . . . Recycled Matter . | . . . Retrieved Matter . | . . . Retrieved Components . | . . . Parts Scanalyzed . | . . . Part Schematics Acquired . | . . . Parts Damaged . | . . . Bothacking | -11 -10 -10 ------------ Run | Yrd Mat Min Used RIF Installer . | . . . Robots Hacked . | . . . Non-combat . | . . . Combat . | . . . Robot Hacks Applied . | . . . Relay Couplers Released . | . . . Fabnet Peak Effective % . | . . . Robots Rewired . | . . . Allies Hacked . | . . . Hacks Repelled . | . . . Allies | -11 -10 -10 -------- Run | Yrd Mat Min Total Allies . | . . . Largest Group . | . . . Highest-Rated Group . | . . . Highest-Rated Ally . | . . . Total Orders . | . . . Ally Attacks . | . . . Total Damage . | . . . Kills . | . . . Allies Corrupted . | . . . Allies Melted . | . . . Intel | -11 -10 -10 ------- Run | Yrd Mat Min Robot Analysis Total 3 | . 3 . Derelict Logs Recovered . | . . . Drone Launches . | . . . Drone Recoveries . | . . . Exploration | -11 -10 -10 ------------- Run | Yrd Mat Min Turns Passed 2177 | 69 1966 142 Spaces Moved 942 | 39 842 61 Core 3 | 3 . . Treads 761 | 36 725 . Legs . | . . . Wheels 178 | . 117 61 Hover . | . . . Flight . | . . . Fastest Speed 50 | 50 105 110 Average Speed 181 | 151 188 110 Slowest Speed 320 | 160 320 110 Overloaded Moves . | . . . Propulsion Burnouts . | . . . Robots Hopped . | . . . Cave-ins Triggered . | . . . Exploration Rate (%) 37 | 5 89 19 Regions Visited 2 Branch Regions 1 Pre-discovered Areas . | . . . Known Exits Taken . | . . . Unknown Exits Taken 2 | 1 1 . Scrap Searched . | . . . Spaces Dug . | . . . Terrain Destroyed 31 | . . 31 Melee . | . . . Projectile . | . . . AOE 31 | . . 31 Terrain Rammed . | . . . Walls Destroyed . | . . . Machines Disabled . | . . . Actions | -11 -10 -10 --------- Run | Yrd Mat Min Total 1209 | 46 1054 109 Wait 106 | . 83 23 Move 940 | 38 841 61 Hop . | . . . Pick Up 23 | 2 21 . Fast Attach 10 | 6 4 . Attach 6 | . 2 4 Detach 1 | . 1 . Swap 5 | . 2 3 Drop 4 | . 4 . Fire 111 | . 93 18 Melee . | . . . Ram 2 | . 2 . Kick . | . . . Crush 1 | . 1 . Escape Stasis . | . . . Rewire . | . . . Trap . | . . . Miscellaneous . | . . . Route ------- -11/Scrapyard -10/Materials (discovered 4 exits: [*Mat x2] / [*Min x2]) -10/Mines History --------- Turn | Location | Event 8 | -11/Scrapyard | Discovered new exit (range 15) 70 | -11/Scrapyard | Entered Materials 284 | -10/Materials | Discovered new exit (range 6) 311 | -10/Materials | Discovered new exit (range 8) 318 | -10/Materials | Build established: Mutant 537 | -10/Materials | Discovered new exit (range 4) 1606 | -10/Materials | Discovered new exit (range 16) 2036 | -10/Materials | Entered Mines 2037 | -10/Mines | Assembled infested the area 2042 | -10/Mines | Assisted by a Guerilla fighting off Assembled 2053 | -10/Mines | Core integrity fell below 50% 2057 | -10/Mines | Core integrity fell below 20% 2086 | -10/Mines | Destroyed 13 combat bots 2117 | -10/Mines | Met a Derelict bent on vengeance 2178 | -10/Mines | Destroyed by D-53 Grenadier with Mini Grenade Launcher Last Messages --------------- 02087_ The unstable cave ceiling collapses. 02109_ Acquired 4 matter. 02118_ D-53 Grenadier shuts down. 02131_ EM Pulse Gun destroyed. 02133_ D-53 Grenadier reactivates. 02134_ D-53 Grenadier destroyed. 02138_ The unstable cave ceiling collapses. 02143_ R-06 Scavenger collects Launcher Guidance Computer. 02164_ EM Pulse Gun destroyed. 02164_ Wheel destroyed. 02169_ The unstable cave ceiling collapses. 02173_ U-05 Engineer lays Concrete. 02174_ Med. Laser destroyed. 02174_ U-05 Engineer lays Concrete. 02175_ U-05 Engineer builds a Wall. 02176_ U-05 Engineer lays Concrete. 02176_ Ion Engine destroyed. 02177_ U-05 Engineer builds a Wall. 02178_ Lgt. Assault Rifle destroyed. Map ----- +----------------------------------------------------+ | ????## #???????? ##?????????????? | | ????# #??????? ?????????????? | | ????? ##????? #?????????????? | | ?????? #????# ##????????????? | | ??????# ???? ##???????????? | | ??????# ???## ????????????? | | ??????# ???# ?????????????? | | ??????# #???? #?????????????? | | ???????# ###?? % ??????????????? | | ?????### ##? # ??? ????????? | | ????## ### ??? ????? | | ???## u# ## %###?# ????? | | ???# % ## #????? | | ??## u %$%### #?????? | | ??# # # ### ## #?????? | | ??# ####r #?????? | | ??## ### ### #??????? | | ???#### ### ##???????????? | | ?????# ##????????????? | | ?????# # ##????????????? | | ?????## % < ####?????????? | | ??????# d #?????????? | | ??????# ## #?????????? | | ?????## ##?# ##?????????? | | ????## #???##??????????? | | ????# @ ##???????????????? | | ???# #????????????????? | | ???# ##????????????????? | | ???## ###?????????????????? | | ????##### ##???????????????????? | | ????????#######????????????????????? | | | | | | | | | | | | | | | | | | | | | | | | | | | | | | | | | | | | | | | +----------------------------------------------------+ Best States ------------- Heat Dissipation 25 Energy Generation 10 Energy Capacity 250 Matter Stores 300 Matter Capacity 300 Sight Range 16 Terrain Scan Density 10 Evasion (%) 40 Targeting Accuracy 5 Recoil Reduction 2 Item Schematics ----------------- None Robot Schematics ------------------ None Fabricated ------------ Nothing Alien Tech Used ----------------- None Achievements -------------- None Challenges ------------ None Game ------ Seed AnalysisMetafiberCannon Manual? 0 Play Time 00:15:41 Cumulative 82.8 hours Start 2025.02.28 @ 15:07:34 End 2025.02.28 @ 16:16:20 Sessions 3 Manual Loads 0 Difficulty Rogue Special Mode None Game No. 65 Rogue 65 Adventurer 0 Explorer 0 Win Type - Total 2 Types 2/0/0/0/0/0/0/0/0 Lore% 43 Gallery% 44 Achievement% 44 Wizard Run 0 Options --------- Layout 2 ASCII 0 Keyboard 1 Movement Numpad Keybinds 0 Fullscreen 2 Font 32/SmallcapsGlow Map View 50x44 Zoom Use 0% Tactical HUD 1 Map Filters NONE Filters NONE Steam 1 RUN: b963355f-750d-43b2-914b-f23ef51a250e